Cogmind - Beta 13 @@@ ROGUE MODE // 2024.04.16 @ 21:21:45 Player: Gabe+Kate4EVR Result: Destroyed by Y-45 Defender with Heavy Assault Rifle Performance ------------- Evolutions (2) 1000 Regions Visited (4) 800 Robots Destroyed (85) 425 Value Destroyed (2622) 2622 Prototype IDs (5) 100 Alien Tech Used (0) 0 Bonus (826) 826 TOTAL SCORE: 5773 Bonus ------- High Alert Combat Kills 126 Entered Garrisons 200 Used RIF Installer 500 Cogmind --------- Core Integrity 0/550 Matter 260/300 Energy 100/100 System Corruption 3% Temperature Cool (9) Movement Core (300) Ox5 Location -8/Garrison Parts ------- > --- POWER (2) -------- (None) > --- PROPULSION (5) --- (None) > --- UTILITY (2) ------ Cooling System Medium Storage Unit > --- WEAPON (2) ------- Plasma Rifle > --- INVENTORY (10) --- Improved Heat Sink Compact Battery (200) Compact Matter Pod (144) Weapon Cycler Improved Light Armor Plating Improved Light Armor Plating Relay Coupler [NC] (21) Relay Coupler [Grunt] (31) Relay Coupler [Sentry] (18) Beam Rifle Peak State ------------ > --- POWER ------------ Light Ion Engine Light Nuclear Core > --- PROPULSION ------- Light Treads Improved Treads Advanced Treads Wheel Wheel > --- UTILITY ---------- Medium Storage Unit Improved Medium Armor Plating > --- WEAPON ----------- Shotgun Gauss Rifle > --- INVENTORY -------- Improved Ion Engine VTOL Module Improved Flight Unit Improved VTOL Module Small Storage Unit Medium Battery Weapon Cycler Light Armor Plating Assault Rifle Rocket Launcher [Rating: 25] Favorites ----------- Power Improved Ion Engine Engine Improved Ion Engine Power Core Light Nuclear Core Propulsion Aluminum Leg Treads Light Treads Leg Aluminum Leg Wheel Wheel Flight Unit VTOL Module Utility Medium Storage Unit Device Improved Heat Sink Storage Medium Storage Unit Hackware Hacking Suite Protection Improved Medium Armor Plating Weapon Assault Rifle Energy Gun Small Laser Ballistic Gun Assault Rifle Ballistic Cannon Light Cannon Launcher Mini Grenade Launcher Build | -11 -10 -9 -8 -8 ------- Run | Yrd Mat Mat Mat Gar Slots Evolved 4 | . . 2 2 . Power 1 | . . . 1 . Propulsion 3 | . . 2 1 . Utility . | . . . . . Weapon . | . . . . . Parts Attached 139 | 6 29 45 31 28 Power 18 | 1 3 7 4 3 Engine 14 | 1 3 7 2 1 Core 4 | . . . 2 2 Reactor . | . . . . . Propulsion 52 | 2 9 13 19 9 Treads 10 | . . 3 4 3 Leg 18 | 2 9 1 . 6 Wheel 15 | . . . 15 . Hover . | . . . . . Flight 9 | . . 9 . . Utility 33 | 1 8 13 4 7 Device 12 | . 3 6 . 3 Storage 8 | 1 2 2 3 . Processor . | . . . . . Hackware 1 | . 1 . . . Protection 12 | . 2 5 1 4 Artifact . | . . . . . Weapon 36 | 2 9 12 4 9 Energy Gun 8 | . 4 1 . 3 Energy Cannon . | . . . . . Ballistic Gun 19 | 2 5 6 4 2 Ballistic Cannon 4 | . . 4 . . Launcher 5 | . . 1 . 4 Special Weapon . | . . . . . Impact Weapon . | . . . . . Slashing Weapon . | . . . . . Piercing Weapon . | . . . . . Special Melee Weapon . | . . . . . Unidentified Prototypes . | . . . . . Parts Lost 37 | . 3 2 3 29 Power 8 | . 1 . 2 5 Propulsion 16 | . . 1 1 14 Utility 4 | . 1 . . 3 Weapon 9 | . 1 1 . 7 Highest Loss Streak 9 | . 1 1 2 9 To Critical Strikes . | . . . . . Average Slot Usage (%) 86 | . 97 92 89 71 Engine 10 | . 13 10 8 8 Core 2 | . . . 4 3 Treads 5 | . . 3 17 4 Leg 15 | . 27 13 . 12 Wheel 4 | . . . 11 7 Flight 5 | . . 19 12 . Device 3 | . 6 7 1 1 Storage 9 | . 14 6 7 9 Protection 6 | . 4 8 9 7 Energy Gun 4 | . 8 . . 5 Ballistic Gun 13 | . 19 18 15 3 Launcher 2 | . . . . 8 Naked Turns . | . . . . . Heaviest Build 56 | 14 50 56 36 36 Greatest Support 85 | 20 20 46 85 62 Greatest Overweight (x) 6 | 1 4 2 2 6 Average Overweight (x) . | . . . . . Largest Inventory Capacity 20 | 8 20 20 10 10 Average Capacity 10 | 7 9 13 8 10 Most Carried 20 | 2 10 20 10 10 Average Carried 8 | 1 8 8 7 8 Final Capacity 20 | 8 20 5 10 10 Final Carried 10 | 2 10 5 10 10 Class Distribution -------------------- 57% | Scavenger-Mutant 33% | Mutant 7% | Sprinter Dominant Class ---------------- Scavenger-Mutant | -10/Materials Sprinter | -9/Materials Scavenger-Mutant | -8/Materials Scavenger-Mutant | -8/Garrison Resources | -11 -10 -9 -8 -8 ----------- Run | Yrd Mat Mat Mat Gar Matter Collected 3365 | 191 702 727 793 952 Remotely . | . . . . . Salvage Created 3161 | . 912 793 852 604 Parts 183 | . 52 57 53 21 Haulers Intercepted 8 | . 2 4 2 . Recyclers Shooed 2 | . 1 . 1 . Parts Field Recycled . | . . . . . Retrieved Matter . | . . . . . Parts Self-Destructed . | . . . . . Prevented . | . . . . . Kills | -11 -10 -9 -8 -8 ------- Run | Yrd Mat Mat Mat Gar Combat Hostiles Destroyed 51 | . 17 11 6 17 Guns 38 | . 17 10 5 6 Cannons 2 | . . 1 1 . AOE 11 | . . . . 11 Classes Destroyed 12 | . 6 2 2 2 Worker 11 | . 1 1 9 . Builder 3 | . . 1 2 . Tunneler 2 | . . . 2 . Hauler 8 | . 2 4 2 . Recycler 5 | . 1 1 3 . Watcher 5 | . 2 3 . . Swarmer 6 | . 3 3 . . Grunt 32 | . 14 4 3 11 Duelist 1 | . . . . 1 Sentry 8 | . . 4 2 2 Hunter 3 | . . . 1 2 Behemoth 1 | . . . . 1 Best Kill Streak 7 | . 7 5 5 4 Combat Bots Only 7 | . 7 5 2 4 Max Kills in Single Turn 3 | . 2 2 1 3 Gunslinging . | . . . . . Exploded 3 | . . . . 3 Melee . | . . . . . Uniques/NPCs Destroyed . | . . . . . Combat | -11 -10 -9 -8 -8 -------- Run | Yrd Mat Mat Mat Gar Hostile Shots Fired 407 | . 88 54 66 199 Missed 134 | . 22 20 19 73 Damage Taken 4688 | . 775 549 767 2597 Core 737 | . 120 59 32 526 Absorbed by Shields 28 | . . . . 28 Redirected to Shielding 21 | . 3 . . 18 Regen/Repaired (Parts) 90 | . 39 51 . . Core Remaining (%) 79 | 100 52 85 . . Volleys Fired 310 | . 88 49 65 108 Largest 2 | . 2 2 2 2 Hottest 108 | . 80 79 55 108 Shots Fired 567 | . 174 97 122 174 Gun 507 | . 174 89 111 133 Cannon 19 | . . 8 11 . Launcher 41 | . . . . 41 Special . | . . . . . Kinetic 419 | . 141 91 122 65 Thermal 107 | . 33 6 . 68 Explosive 41 | . . . . 41 Electromagnetic . | . . . . . Robot Hit Streak 13 | . 13 5 8 11 Robot Miss Streak 7 | . 3 5 7 3 Penetration Max 1 | . . . 1 1 Secondary Targets 3 | . 1 1 . 1 Max Gunslinging Chain 1 | . 1 1 . 1 Shots Hit Robots 336 | . 120 53 84 79 Core Hits 169 | . 39 28 47 55 Critical Kills . | . . . . . Critical Parts Destroyed 1 | . . . 1 . Critical Strikes 2 | . . . 1 1 Burn 1 | . . . . 1 Destroy 1 | . . . 1 . Melee Attacks . | . . . . . Impact . | . . . . . Slashing . | . . . . . Piercing . | . . . . . Sneak Attacks . | . . . . . Combat Hostiles . | . . . . . Follow-up Attacks . | . . . . . Damage Inflicted 6257 | . 1383 809 1455 2610 Guns 4521 | . 1383 740 1307 1091 Cannons 205 | . . 69 136 . Explosions 1504 | . . . . 1504 Melee . | . . . . . Ramming 27 | . . . 12 15 Kinetic 4001 | . 1171 780 1443 607 Thermal 725 | . 212 29 . 484 Explosive 1504 | . . . . 1504 Electromagnetic . | . . . . . Impact . | . . . . . Slashing . | . . . . . Piercing . | . . . . . Highest Corruption 3 | . 1 . 2 3 Average Corruption 1 | . 1 . 2 2 Corruption Purged . | . . . . . Corruption Blocked . | . . . . . Effects 39 | . 7 . 2 30 Message Errors 7 | . 2 . 1 4 Matter Fused 9 | . 1 . . 8 Heat Flow Errors 5 | . . . . 5 Energy Discharges 9 | . 3 . . 6 Data Loss (minor) 2 | . . . 1 1 Data Loss (major) 2 | . . . . 2 Misfires 3 | . . . . 3 Weapon Failures 2 | . 1 . . 1 Overload Shots . | . . . . . Overflow Damage 18 | . . . . 18 Projectiles . | . . . . . Explosions 18 | . . . . 18 Melee . | . . . . . Knockbacks . | . . . . . Impact . | . . . . . Kinetic . | . . . . . Secondary . | . . . . . Self-Inflicted Damage 441 | . . . . 441 Shots 19 | . . . . 19 Rammed 10 | . . . 5 5 Targets Rammed 16 | . . . 5 11 Kicked 6 | . . . . 6 Crushed . | . . . . . Highest Temperature 274 | . 6 90 45 274 Average Temperature 56 | . 4 26 10 80 Received Heat Transfer 1506 | . 378 150 315 663 Siege Activations . | . . . . . Robots Corrupted . | . . . . . Combat Hostiles . | . . . . . Parts Fried . | . . . . . Impact Corruptions . | . . . . . Robots Melted . | . . . . . Combat Hostiles . | . . . . . Parts Melted . | . . . . . Heat Transferred 1540 | . 475 74 . 991 Parts Sabotaged . | . . . . . Parts Stolen . | . . . . . Parts Stripped . | . . . . . Power Chain Reactions . | . . . . . Alert | -11 -10 -9 -8 -8 ------- Run | Yrd Mat Mat Mat Gar Peak Influence 904 | . 261 323 195 904 Initial 92 | . . . 72 92 Average 248 | . 96 89 108 575 Maximum Alert Level 3 | . 1 1 . 3 Low Security (%) 63 | 100 84 79 100 9 Level 1 14 | . 15 20 . 21 Level 2 10 | . . . . 31 Level 3 11 | . . . . 36 Level 4 . | . . . . . Level 5 . | . . . . . High Security . | . . . . . Max Security . | . . . . . Squads Dispatched 8 | . 5 3 . . Investigation 6 | . 5 1 . . Extermination . | . . . . . Reinforcement 2 | . . 2 . . Assault . | . . . . . Garrison . | . . . . . Intercept . | . . . . . Searches Triggered . | . . . . . Construction Impeded . | . . . . . Haulers Reinforced . | . . . . . Active Scanning Responses . | . . . . . Cargo Convoy Interrupts . | . . . . . Stealth | -11 -10 -9 -8 -8 --------- Run | Yrd Mat Mat Mat Gar Distress Signals 2 | . . 1 1 . Communications Jammed . | . . . . . Distress Signals . | . . . . . Times Spotted 99 | . 22 20 28 29 Peak Tracking Total 8 | . 6 5 5 8 Tactical Retreats 6 | . 2 . . 4 Traps | -11 -10 -9 -8 -8 ------- Run | Yrd Mat Mat Mat Gar Traps Triggered 7 | . 2 2 1 2 Indirectly . | . . . . . Trap Hack Attempts . | . . . . . Triggered . | . . . . . Disarmed . | . . . . . Reprogrammed . | . . . . . Reused . | . . . . . Traps Extracted . | . . . . . Installed . | . . . . . Triggered . | . . . . . Machines | -11 -10 -9 -8 -8 ---------- Run | Yrd Mat Mat Mat Gar Machines Disabled 8 | . . . 4 4 Max in Single Turn 1 | . . . 1 1 Garrison Relay 2 | . . . . 2 Machines Repaired . | . . . . . Machines Dismantled . | . . . . . Machines Sabotaged . | . . . . . Overloaded Fab Kills . | . . . . . Hacking | -11 -10 -9 -8 -8 --------- Run | Yrd Mat Mat Mat Gar Machines Accessed 20 | . 10 5 3 2 Terminals 15 | . 7 4 2 2 Fabricators . | . . . . . Repair Stations 2 | . 1 1 . . Recycling Units 2 | . 2 . . . Scanalyzers . | . . . . . Garrison Access 1 | . . . 1 . Total Hacks 58 | . 37 11 4 6 Successful 23 | . 14 6 2 1 Failed 34 | . 22 5 2 5 Catastrophic 7 | . 6 . . 1 Database Lockouts 1 | . 1 . . . Manual 20 | . 16 3 1 . Terminals 44 | . 26 9 3 6 Fabricators . | . . . . . Repair Stations 6 | . 4 2 . . Recycling Units 7 | . 7 . . . Scanalyzers . | . . . . . Garrison Access 1 | . . . 1 . Terminal Hacks 16 | . 10 4 1 1 Robot Analysis 1 | . 1 . . . Prototype ID Bank 3 | . 1 2 . . Branch Access Points 1 | . . 1 . . Terminal Index 1 | . 1 . . . Recycling Unit Index 1 | . 1 . . . Alert Level 2 | . 1 1 . . Maintenance Status 1 | . 1 . . . Security Status 1 | . 1 . . . Assault Status 1 | . 1 . . . Hauler Manifests 1 | . 1 . . . Registered Prototypes 1 | . 1 . . . Zone Layout 1 | . . . 1 . Garrison Registry 1 | . . . . 1 Fabricator Hacks . | . . . . . Repair Station Hacks 4 | . 2 2 . . Scan Component 2 | . 1 1 . . Repair 2 | . 1 1 . . Recycling Unit Hacks 1 | . 1 . . . Retrieve Components 1 | . 1 . . . Scanalyzer . | . . . . . Garrison Access Hacks 1 | . . . 1 . Unlock Access 1 | . . . 1 . Unauthorized Hacks 1 | . 1 . . . Terminals 1 | . 1 . . . Assimilate 1 | . 1 . . . Fabricators . | . . . . . Repair Stations . | . . . . . Recycling Units . | . . . . . Scanalyzers . | . . . . . Garrison Access . | . . . . . Data Cores Recovered . | . . . . . Used . | . . . . . Hacking Detections 18 | . 11 3 2 2 Full Trace Events 15 | . 11 2 . 2 Feedback Events . | . . . . . Feedback Blocked . | . . . . . Robot Schematics Acquired . | . . . . . Robots Built . | . . . . . Authchips . | . . . . . Time . | . . . . . Total Robot Build Rating . | . . . . . Part Schematics Acquired . | . . . . . Parts Built . | . . . . . Authchips . | . . . . . Time . | . . . . . Total Part Build Rating . | . . . . . Parts Repaired 2 | . 1 1 . . Time 58 | . 26 32 . . Parts Recycled . | . . . . . Recycled Matter . | . . . . . Retrieved Matter . | . . . . . Retrieved Components 10 | . 10 . . . Parts Scanalyzed . | . . . . . Part Schematics Acquired . | . . . . . Parts Damaged . | . . . . . Bothacking | -11 -10 -9 -8 -8 ------------ Run | Yrd Mat Mat Mat Gar Used RIF Installer 1 | . . . . 1 Robots Hacked . | . . . . . Non-combat . | . . . . . Combat . | . . . . . Robot Hacks Applied . | . . . . . Relay Couplers Released 10 | . . . . 10 Machine Destruction 10 | . . . . 10 Fabnet Peak Effective % . | . . . . . Robots Rewired . | . . . . . Allies Hacked . | . . . . . Hacks Repelled . | . . . . . Allies | -11 -10 -9 -8 -8 -------- Run | Yrd Mat Mat Mat Gar Total Allies 1 | . 1 . . . Largest Group 1 | . 1 . . . Highest-Rated Group 10 | . 10 . . . Highest-Rated Ally 10 | . 10 . . . Total Orders . | . . . . . Ally Attacks . | . . . . . Total Damage . | . . . . . Kills . | . . . . . Allies Corrupted . | . . . . . Allies Melted . | . . . . . Intel | -11 -10 -9 -8 -8 ------- Run | Yrd Mat Mat Mat Gar Robot Analysis Total 1 | . 1 . . . Derelict Logs Recovered . | . . . . . Drone Launches . | . . . . . Drone Recoveries . | . . . . . Exploration | -11 -10 -9 -8 -8 ------------- Run | Yrd Mat Mat Mat Gar Turns Passed 5379 | 80 1708 817 1067 1707 Spaces Moved 3434 | 61 1065 742 652 914 Core 14 | 10 . . . 4 Treads 556 | . . 13 327 216 Legs 1820 | 51 1065 140 . 564 Wheels 267 | . . . 137 130 Hover . | . . . . . Flight 777 | . . 589 188 . Fastest Speed 29 | 50 120 29 30 85 Average Speed 119 | 113 125 73 123 147 Slowest Speed 400 | 120 400 260 240 350 Overloaded Moves . | . . . . . Propulsion Burnouts . | . . . . . Robots Hopped 14 | . . 14 . . Cave-ins Triggered . | . . . . . Exploration Rate (%) 53 | 5 94 48 39 79 Regions Visited 4 Branch Regions . Pre-discovered Areas . | . . . . . Known Exits Taken 1 | . . . 1 . Unknown Exits Taken 3 | 1 1 1 . . Scrap Searched . | . . . . . Spaces Dug 19 | . . . . 19 Terrain Destroyed 254 | . . . . 254 Melee . | . . . . . Projectile 1 | . . . . 1 AOE 253 | . . . . 253 Terrain Rammed . | . . . . . Walls Destroyed . | . . . . . Machines Disabled . | . . . . . Actions | -11 -10 -9 -8 -8 --------- Run | Yrd Mat Mat Mat Gar Total 4128 | 69 1277 897 796 1089 Wait 110 | 1 53 42 10 4 Move 3402 | 60 1064 714 651 913 Hop 13 | . . 13 . . Pick Up 45 | 2 16 9 7 11 Fast Attach 77 | 6 14 23 15 19 Attach 17 | . 2 6 3 6 Detach 10 | . . 6 3 1 Swap 45 | . 13 16 13 3 Drop 80 | . 27 19 24 10 Fire 310 | . 88 49 65 108 Melee . | . . . . . Ram 5 | . . . . 5 Kick 6 | . . . . 6 Crush 5 | . . . 5 . Escape Stasis 3 | . . . . 3 Rewire . | . . . . . Trap . | . . . . . Miscellaneous . | . . . . . Route ------- -11/Scrapyard -10/Materials (discovered 5 exits: *Mat x3 / [*Min x2]) -9/Materials (discovered 2 exits: *Mat / *Min) -8/Materials (discovered 2 exits: [*Sto] / Gar) -8/Garrison (discovered 3 exits: [*Mat x3]) History --------- Turn | Location | Event 15 | -11/Scrapyard | Discovered new exit (range 15) 81 | -11/Scrapyard | Entered Materials 133 | -10/Materials | Discovered new exit (range 16) 290 | -10/Materials | Discovered new exit (range 12) 316 | -10/Materials | Build established: Mutant 708 | -10/Materials | Build established: Scavenger-Mutant 726 | -10/Materials | Destroyed 7 combat bots 730 | -10/Materials | Discovered new exit (range 14) 763 | -10/Materials | Central database locked down 1343 | -10/Materials | Discovered new exit (range 12) 1484 | -10/Materials | Repaired Aluminum Leg? 1571 | -10/Materials | Build established: Mutant 1603 | -10/Materials | Discovered new exit (range 16) 1789 | -10/Materials | Entered another Materials area 1789 | -9/Materials | Evolved 2 slots: Propulsion x2 2259 | -9/Materials | Discovered new exit (range 8) 2288 | -9/Materials | Identified exit to Mines 2372 | -9/Materials | Repaired Imp. Ion Engine 2584 | -9/Materials | Discovered new exit (range 14) 2606 | -9/Materials | Entered another Materials area 2606 | -8/Materials | Evolved 2 slots: Power x1, Propulsion x1 2619 | -8/Materials | Identified exit to Garrison 2756 | -8/Materials | Discovered new exit (range 7) 3386 | -8/Materials | Build established: Scavenger-Mutant 3673 | -8/Materials | Entered Garrison 3712 | -8/Garrison | Triggered checkpoint 3739 | -8/Garrison | Garrison Relay disabled 3782 | -8/Garrison | Triggered checkpoint 3912 | -8/Garrison | Lost 9 parts (1p4n1u3w) 4168 | -8/Garrison | Installed Relay Interface Framework 4201 | -8/Garrison | Triggered checkpoint 4203 | -8/Garrison | Triggered checkpoint 4209 | -8/Garrison | Triggered checkpoint 4269 | -8/Garrison | Triggered checkpoint 4275 | -8/Garrison | Discovered new exit (range 14) 4517 | -8/Garrison | Discovered new exit (range 9) 4527 | -8/Garrison | Triggered checkpoint 4558 | -8/Garrison | Garrison Relay disabled 4585 | -8/Garrison | Discovered new exit (range 22) 4585 | -8/Garrison | Discovered new exit (range 26) 4585 | -8/Garrison | Discovered new exit (range 67) 4805 | -8/Garrison | Core integrity fell below 50% 4887 | -8/Garrison | Lost 6 parts (1p3n2w) 5128 | -8/Garrison | Spotted B-75 Beast 5145 | -8/Garrison | Core integrity fell below 20% 5148 | -8/Garrison | Destroyed B-75 Beast 5369 | -8/Garrison | Spotted B-75 Beast 5380 | -8/Garrison | Destroyed by Y-45 Defender with Heavy Assault Rifle Last Messages --------------- 05180_ Acquired Com. Matter Pod. 05181_ The unstable cave ceiling collapses. 05186_ Extracted 150 matter. 05188_ The unstable cave ceiling collapses. 05198_ Acquired 48 matter. 05200_ System corrupted: Energy discharge (-33). 05210_ The unstable cave ceiling collapses. 05249_ System corrupted: Heat flow error (+155). 05311_ &ZOGHPOZQRJ7LNR:NKNVJ:VC OSJAY%=O L6W 05369_ System corrupted: Plasma Rifle failed to cycle. 05370_ B-75 Beast springs to life. 05371_ The unstable cave ceiling collapses. 05371_ Y-45 Defender springs to life. 05372_ Machine disabled. 05373_ The unstable cave ceiling collapses. 05373_ Machine collapses. 05376_ Lgt. Treads destroyed. 05377_ The unstable cave ceiling collapses. 05379_ Rocket Launcher destroyed. 05379_ Lgt. Nuclear Core destroyed. Map ----- +----------------------------------------------------+ | ?????????????????????????????????????????????????? | | ?????????????????????????????????????????????????? | | ?????????????????????????????????????????????????? | | ?????????????????????????????????????????????????? | | ?????????????????????????????????????????????????? | | ?????????????????????????????????????????????????? | | ?????????????????????????????????????????????????? | | ?????????????????????????????????????????????????? | | ?????????????????????????????????????????????????? | | ?????????????????????????????????????????????????? | | ?????????????????????????????????????????????????? | | ?????????????????????????????????????????????????? | | ??????????????????????????????????????????#####??? | | ?????????????????????############?????????# #??? | | ?????????????????????#""""""""""#?######### #### | | ?????????????????????#"""[!=["""#?# + | | ?????????????????????#"" ""#?# + | | ####?????????????????#"| !"#?# ############# | | #?????????????????#"!Y Y!"#?# #???????????? | | < #?????????????????#"] BB !"#?# #???????????? | | #?????????????????#"= BB ["#?# #???????????? | | # #?????????????????# ! ["#?# #??#######??? | | # #?????????????????# ]"#?# #??#"" ""#??? | | # #?????????????????# ""#?# #####!!!###?? | | # #?????????????????### ###?# + + ^ #?? | | # #???????????????????# @ #???# ## ###### #?? | | ##############??????# %#####???# ## #????#!#?? | | # #??????#%;######### ## #??### #?? | | # #????### ## #?## # ### | | #+######+##### #???## ## ### # | | # #????# #???# #???# ##+#### # # | | #????# #???# #???## ### ### # ## ### # # | | ###????# #???# #???# ### # # # ## ## ### | | ???????# #???# #???# # | | ???????# #???# ####### ## # # # ##### | | ???????# #???# ## ## # ## ### ## # # | | ???????# #??## ## ## ##### ## # #### # | | ???????# #### ^ ####+### #####??###### | | ???????# + ^ #???????????? | | ???????###### ^ #???????????? | | ????????????# ## ^## ###########???????????? | | ??????????### ## ^## ###???????????????????? | | ??????????# #???????????????????? | | ??????????# #???????????????????? | | ??????????# #######?????????????? | | ??????????# + #?????????????? | | ???????###### ## ## ####### ######????????? | | ???##### # ## ## #######+##"T"#?????#### | | #??# "#?????#! ! | | #??# #####?????#! ! | +----------------------------------------------------+ Best States ------------- Heat Dissipation 53 Coolant Potential 65 Energy Generation 21 Energy Capacity 430 Matter Stores 300 Matter Capacity 300 Sight Range 16 Robot Scan Range 14 Terrain Scan Density 10 Additional Mass Support 6 Armor Coverage 225 Core Shielding 20 Power Shielding 33 Evasion (%) 64 Recoil Reduction 4 Particle Charging 20 Offensive Hacking 10 Item Schematics ----------------- None Robot Schematics ------------------ None Fabricated ------------ Nothing Alien Tech Used ----------------- None Achievements -------------- None Challenges ------------ None Game ------ Seed NovaFrostRegenerator Manual? 0 Play Time 00:44:57 Cumulative 96.6 hours Start 2024.04.16 @ 19:14:59 End 2024.04.16 @ 21:21:45 Sessions 1 Manual Loads 0 Difficulty Rogue Special Mode None Game No. 193 Rogue 193 Adventurer 0 Explorer 0 Win Type - Total 0 Types 0/0/0/0/0/0/0/0/0 Lore% 31 Gallery% 50 Achievement% 35 Wizard Run 0 Options --------- Layout 0 ASCII 0 Keyboard 1 Movement Numpad Keybinds 0 Fullscreen 1 Font 18/X11 Map View 76x50 Zoom Use 0% Tactical HUD 1 Map Filters NONE Filters NONE Steam 1 RUN: 513f906f-0b3b-49af-aeb5-277b0ae1155b